fUSD/lending_fUSD_20250629
["ID","MTS","AMOUNT","RATE_DAILY","PERIOD"]
[368594316,1751220650182,-151.0,0.00021917,2]
[368594317,1751220650191,-151.0,0.00021917,2]
[368594318,1751220650201,-490.0,0.00021917,2]
[368594319,1751220650211,-490.0,0.00021917,2]
[368594320,1751220650221,-490.0,0.00021917,2]
[368594321,1751220650230,-490.0,0.00021917,2]
[368594322,1751220650239,-490.0,0.00021917,2]
[368594323,1751220650249,-151.0,0.00021917,2]
[368594324,1751220650259,-490.0,0.00021917,2]
[368594325,1751220650268,-490.0,0.00021917,2]
[368594326,1751220650278,-151.0,0.00021917,2]
[368594327,1751220650288,-490.0,0.00021917,2]
[368594328,1751220650297,-490.0,0.00021917,2]
[368594329,1751220650307,-1397.36,0.00021917,2]
[368594330,1751220650316,-490.0,0.00021917,2]
[368594331,1751220650326,-151.0,0.00021917,2]
[368594332,1751220650335,-151.0,0.00021917,2]
[368594333,1751220650344,-490.0,0.00021917,2]
[368594334,1751220650354,-1498.92,0.00021917,2]
[368594335,1751220650363,-151.0,0.00021917,2]
[368594336,1751220650373,-1111.33,0.00021917,2]
[368594337,1751220650383,-490.0,0.00021917,2]
[368594338,1751220650392,-490.0,0.00021917,2]
[368594339,1751220650403,-490.0,0.00021917,2]
[368594340,1751220650412,-490.0,0.00021917,2]
[368594341,1751220650422,-490.0,0.00021917,2]
[368594342,1751220650431,-504.0,0.00021917,2]
[368594343,1751220650441,-490.0,0.00021917,2]
[368594344,1751220650450,-2068.59,0.00021917,2]
[368594345,1751220650459,-490.0,0.00021917,2]
[368594346,1751220650469,-490.0,0.00021917,2]
[368594347,1751220650479,-490.0,0.00021917,2]
[368594348,1751220650488,-490.0,0.00021917,2]
[368594349,1751220650499,-490.0,0.00021917,2]
[368594350,1751220650509,-581.97,0.00021917,2]
[368594351,1751220650519,-490.0,0.00021917,2]
[368594352,1751220650528,-3647.47,0.00021917,2]
[368594353,1751220650538,-490.0,0.00021917,2]
[368594354,1751220650549,-1940.33,0.00021917,2]
[368594355,1751220650560,-171.70786693,0.00021917,2]
[368594356,1751220650570,-490.0,0.00021917,2]
[368594357,1751220650580,-490.0,0.00021917,2]
[368594358,1751220650590,-792.3,0.00021917,2]
[368594359,1751220650599,-490.0,0.00021917,2]
[368594360,1751220650609,-490.0,0.00021917,2]
[368594361,1751220650618,-490.0,0.00021917,2]
[368594362,1751220650628,-490.0,0.00021917,2]
[368594363,1751220650644,-151.0,0.00021917,2]
[368594364,1751220650655,-291.895145,0.00021917,2]
[368594365,1751220650666,-484.36518451,0.00021917,2]
[368594366,1751220650676,-490.0,0.00021917,2]
[368594367,1751220650687,-2967.52,0.00021917,2]
[368594368,1751220650698,-490.0,0.00021917,2]
[368594369,1751220650708,-1147.23,0.00021917,2]
[368594370,1751220650718,-490.0,0.00021917,2]
[368594371,1751220650728,-670.02,0.00021917,2]
[368594372,1751220650738,-490.0,0.00021917,2]
[368594373,1751220650748,-151.0,0.00021917,2]
[368594374,1751220650758,-490.0,0.00021917,2]
[368594375,1751220650768,-151.0,0.00021917,2]
[368594376,1751220650778,-151.0,0.00021917,2]
[368594377,1751220650790,-196.816046,0.00021917,2]
[368594378,1751220650802,-747.94,0.00021917,2]
[368594379,1751220650814,-490.0,0.00021917,2]
[368594380,1751220650825,-610.96,0.00021917,2]
[368594381,1751220650837,-490.0,0.00021917,2]
[368594382,1751220650849,-1159.01,0.00021917,2]
[368594383,1751220650860,-490.0,0.00021917,2]
[368594384,1751220650870,-3245.35,0.00021917,2]
[368594385,1751220650880,-490.0,0.00021917,2]
[368594386,1751220650892,-519.36546108,0.00021917,2]
[368594387,1751220650902,-490.0,0.00021917,2]
[368594388,1751220650913,-490.0,0.00021917,2]
[368594389,1751220650922,-492.97651455,0.00021917,2]
[368594390,1751220650933,-942.85,0.00021917,2]
[368594391,1751220650944,-490.0,0.00021917,2]
[368594392,1751220650954,-490.0,0.00021917,2]
[368594393,1751220650966,-525.14,0.00021917,2]
[368594394,1751220650976,-1285.54,0.00021917,2]
[368594395,1751220650986,-919.23,0.00021917,2]
[368594396,1751220650997,-490.0,0.00021917,2]
[368594397,1751220651008,-490.0,0.00021917,2]
[368594398,1751220651018,-490.0,0.00021917,2]
[368594399,1751220651028,-749.04,0.00021917,2]
[368594400,1751220651038,-490.0,0.00021917,2]
[368594401,1751220651048,-1968.74,0.00021917,2]
[368594402,1751220651057,-490.0,0.00021917,2]
[368594403,1751220651067,-490.0,0.00021917,2]
[368594404,1751220651077,-818.62,0.00021917,2]
[368594405,1751220651087,-490.0,0.00021917,2]
[368594406,1751220651097,-669.7,0.00021917,2]
[368594407,1751220651107,-490.0,0.00021917,2]
[368594408,1751220651117,-1069.65,0.00021917,2]
[368594409,1751220651127,-490.0,0.00021917,2]
[368594410,1751220651137,-510.66,0.00021917,2]
[368594411,1751220651150,-490.0,0.00021917,2]
[368594412,1751220651160,-490.0,0.00021917,2]
[368594413,1751220651170,-151.0,0.00021917,2]
[368594414,1751220651180,-151.912259,0.00021917,2]
[368594415,1751220651190,-490.0,0.00021917,2]
[368594416,1751220651200,-490.0,0.00021917,2]
[368594417,1751220651210,-490.0,0.00021917,2]
[368594418,1751220651221,-490.0,0.00021917,2]
[368594419,1751220651231,-1057.11,0.00021917,2]
[368594420,1751220651241,-1354.06,0.00021917,2]
[368594421,1751220651251,-566.95484858,0.00021917,2]
[368594422,1751220651260,-580.10482968,0.00021917,2]
[368594423,1751220651270,-772.99,0.00021917,2]
[368594424,1751220651280,-699.77,0.00021917,2]
[368594425,1751220651290,-900.27,0.00021917,2]
[368594426,1751220651299,-1908.27,0.00021917,2]
[368594427,1751220651309,-1314.34,0.00021917,2]
[368594428,1751220651319,-490.0,0.00021917,2]
[368594429,1751220651328,-490.0,0.00021917,2]
[368594430,1751220651339,-490.0,0.00021917,2]
[368594431,1751220651348,-490.0,0.00021917,2]
[368594432,1751220651358,-749.32,0.00021917,2]
[368594433,1751220651368,-1355.12,0.00021917,2]
[368594434,1751220651378,-1179.25,0.00021917,2]
[368594435,1751220651388,-773.86,0.00021917,2]
[368594436,1751220651399,-490.0,0.00021917,2]
[368594437,1751220651409,-490.0,0.00021917,2]
[368594438,1751220651419,-1000.0,0.00021917,2]
[368594439,1751220651429,-490.0,0.00021917,2]
[368594440,1751220651440,-490.0,0.00021917,2]
[368594441,1751220651451,-2657.95,0.00021917,2]
[368594442,1751220651461,-578.67,0.00021917,2]
[368594443,1751220651472,-490.0,0.00021917,2]
[368594444,1751220651482,-490.0,0.00021917,2]
[368594445,1751220651492,-580.46,0.00021917,2]
[368594446,1751220651509,-490.0,0.00021917,2]
[368594447,1751220651519,-870.74,0.00021917,2]
[368594448,1751220651529,-490.0,0.00021917,2]
[368594449,1751220651539,-490.0,0.00021917,2]
[368594450,1751220651549,-671.58,0.00021917,2]
[368594451,1751220651558,-2347.75,0.00021917,2]
[368594452,1751220651568,-490.0,0.00021917,2]
[368594453,1751220651579,-490.0,0.00021917,2]
[368594454,1751220651588,-1985.34,0.00021917,2]
[368594455,1751220651599,-490.0,0.00021917,2]
[368594456,1751220651609,-745.04,0.00021917,2]
[368594457,1751220651619,-490.0,0.00021917,2]
[368594458,1751220651628,-650.54,0.00021917,2]
[368594459,1751220651638,-1874.12,0.00021917,2]
[368594460,1751220651648,-2553.99,0.00021917,2]
[368594461,1751220651657,-490.0,0.00021917,2]
[368594462,1751220651667,-693.0,0.00021917,2]
[368594463,1751220651678,-1160.89,0.00021917,2]
[368594464,1751220651687,-490.0,0.00021917,2]
[368594465,1751220651697,-500.0,0.00021917,2]
[368594466,1751220651707,-490.0,0.00021917,2]
[368594467,1751220651716,-500.0,0.00021917,2]
[368594468,1751220651726,-500.0,0.00021917,2]
[368594469,1751220651736,-490.0,0.00021917,2]
[368594470,1751220651746,-226.50052,0.00021917,2]
[368594471,1751220651756,-500.0,0.00021917,2]
[368594472,1751220651767,-276.56,0.00021917,2]
[368594473,1751220651777,-490.0,0.00021917,2]
[368594474,1751220651787,-490.0,0.00021917,2]
[368594475,1751220651797,-490.0,0.00021917,2]
[368594476,1751220651808,-490.0,0.00021917,2]
[368594477,1751220651818,-490.0,0.00021917,2]
[368594478,1751220651828,-490.0,0.00021917,2]
[368594479,1751220651837,-490.0,0.00021917,2]
[368594480,1751220651847,-490.0,0.00021917,2]
[368594481,1751220651857,-490.0,0.00021917,2]
[368594482,1751220651868,-1419.78,0.00021917,2]
[368594483,1751220651878,-490.0,0.00021917,2]
[368594484,1751220651888,-490.0,0.00021917,2]
[368594485,1751220651898,-1708.87,0.00021917,2]
[368594486,1751220651909,-3701.28,0.00021917,2]
[368594487,1751220651918,-490.0,0.00021917,2]
[368594488,1751220651929,-490.0,0.00021917,2]
[368594489,1751220651939,-670.05,0.00021917,2]
[368594490,1751220651950,-490.0,0.00021917,2]
[368594491,1751220651960,-490.0,0.00021917,2]
[368594492,1751220651971,-490.0,0.00021917,2]
[368594493,1751220651981,-1468.11,0.00021917,2]
[368594494,1751220651992,-490.0,0.00021917,2]
[368594495,1751220652002,-490.0,0.00021917,2]
[368594496,1751220652303,-490.0,0.00021917,2]
[368594497,1751220652313,-490.0,0.00021917,2]
[368594498,1751220652322,-1252.66,0.00021917,2]
[368594499,1751220652330,-490.0,0.00021917,2]
[368594500,1751220652340,-746.42,0.00021917,2]
[368594501,1751220652349,-490.0,0.00021917,2]
[368594502,1751220652358,-490.0,0.00021917,2]
[368594503,1751220652367,-490.0,0.00021917,2]
[368594504,1751220652376,-1302.03,0.00021917,2]
[368594505,1751220652385,-2387.73,0.00021917,2]
[368594506,1751220652394,-842.01,0.00021917,2]
[368594507,1751220652403,-2337.29,0.00021917,2]
[368594508,1751220652411,-490.0,0.00021917,2]
[368594509,1751220652420,-1304.33,0.00021917,2]
[368594510,1751220652429,-490.0,0.00021917,2]
[368594511,1751220652438,-490.0,0.00021917,2]
[368594512,1751220652447,-490.0,0.00021917,2]
[368594513,1751220652456,-2201.17,0.00021917,2]
[368594514,1751220652465,-490.0,0.00021917,2]
[368594515,1751220652475,-490.0,0.00021917,2]
[368594516,1751220652484,-499.44,0.00021917,2]
[368594517,1751220652493,-151.0,0.00021917,2]
[368594518,1751220652504,-151.0,0.00021917,2]
[368594519,1751220652514,-151.0,0.00021917,2]
[368594520,1751220652523,-490.0,0.00021917,2]
[368594521,1751220652532,-151.0,0.00021917,2]
[368594522,1751220652543,-151.0,0.00021917,2]
[368594523,1751220652552,-1052.58,0.00021917,2]
[368594524,1751220652562,-151.0,0.00021917,2]
[368594525,1751220652572,-490.0,0.00021917,2]
[368594526,1751220652582,-490.0,0.00021917,2]
[368594527,1751220652592,-372.70381971,0.00021917,2]
[368594528,1751220652602,-151.0,0.00021917,2]
[368594529,1751220652611,-151.0,0.00021917,2]
[368594530,1751220652621,-490.0,0.00021917,2]
[368594531,1751220652630,-490.0,0.00021917,2]
[368594532,1751220652640,-151.0,0.00021917,2]
[368594533,1751220652649,-164.715478,0.00021917,2]
[368594534,1751220652658,-490.0,0.00021917,2]
[368594535,1751220652668,-490.0,0.00021917,2]
[368594536,1751220652677,-500.0,0.00021917,2]
[368594537,1751220652686,-500.0,0.00021917,2]
[368594538,1751220652695,-500.0,0.00021917,2]
[368594539,1751220652705,-500.0,0.00021917,2]
[368594540,1751220652714,-500.0,0.00021917,2]
[368594541,1751220652723,-633.62,0.00021917,2]
[368594542,1751220652732,-500.0,0.00021917,2]
[368594543,1751220652742,-500.0,0.00021917,2]
[368594544,1751220652751,-500.0,0.00021917,2]
[368594545,1751220652760,-500.0,0.00021917,2]
[368594546,1751220652770,-500.0,0.00021917,2]
[368594547,1751220652780,-500.0,0.00021917,2]
[368594548,1751220652789,-490.0,0.00021917,2]
[368594549,1751220652799,-500.0,0.00021917,2]
[368594550,1751220652808,-1342.94,0.00021917,2]
[368594551,1751220652817,-500.0,0.00021917,2]
[368594552,1751220652827,-490.0,0.00021917,2]
[368594553,1751220652836,-490.0,0.00021917,2]
[368594554,1751220652847,-500.0,0.00021917,2]
[368594555,1751220652856,-623.65,0.00021917,2]
[368594556,1751220652867,-518.15521409,0.00021917,2]
[368594557,1751220652876,-490.0,0.00021917,2]
[368594558,1751220652885,-490.0,0.00021917,2]
[368594559,1751220652895,-490.0,0.00021917,2]
[368594560,1751220652904,-845.28,0.00021917,2]
[368594561,1751220652915,-2120.28,0.00021917,2]
[368594562,1751220652924,-490.0,0.00021917,2]
[368594563,1751220652933,-490.0,0.00021917,2]
[368594564,1751220652943,-2168.97,0.00021917,2]
[368594565,1751220652953,-490.0,0.00021917,2]
[368594566,1751220652962,-490.0,0.00021917,2]
[368594567,1751220652971,-2290.12,0.00021917,2]
[368594568,1751220652980,-601.55,0.00021917,2]
[368594569,1751220652989,-1937.05,0.00021917,2]
[368594570,1751220652999,-151.0,0.00021917,2]
[368594571,1751220653008,-970.53,0.00021917,2]
[368594572,1751220653018,-490.0,0.00021917,2]
[368594573,1751220653027,-151.0,0.00021917,2]
[368594574,1751220653037,-151.0,0.00021917,2]
[368594575,1751220653046,-151.0,0.00021917,2]
[368594576,1751220653055,-151.0,0.00021917,2]
[368594577,1751220653064,-223.392188,0.00021917,2]
[368594578,1751220653073,-151.0,0.00021917,2]
[368594579,1751220653083,-5807.78,0.00021917,2]
[368594580,1751220653092,-1663.55,0.00021917,2]
[368594581,1751220653102,-223.392188,0.00021917,2]
[368594582,1751220653112,-223.392188,0.00021917,2]
[368594583,1751220653121,-490.0,0.00021917,2]
[368594584,1751220653131,-1660.44,0.00021917,2]
[368594585,1751220653140,-151.0,0.00021917,2]
[368594586,1751220653150,-151.0,0.00021917,2]
[368594587,1751220653159,-223.392188,0.00021917,2]
[368594588,1751220653169,-151.0,0.00021917,2]
[368594589,1751220653178,-223.392188,0.00021917,2]
[368594590,1751220653187,-151.0,0.00021917,2]
[368594591,1751220653197,-151.0,0.00021917,2]
[368594592,1751220653206,-490.0,0.00021917,2]
[368594593,1751220653215,-223.392188,0.00021917,2]
[368594594,1751220653225,-151.0,0.00021917,2]
[368594595,1751220653234,-490.0,0.00021917,2]
[368594596,1751220653243,-851.36,0.00021917,2]
[368594597,1751220653253,-601.33,0.00021917,2]
[368594598,1751220653262,-634.86,0.00021917,2]
[368594599,1751220653271,-1533.47,0.00021917,2]
[368594600,1751220653281,-223.392188,0.00021917,2]
[368594601,1751220653290,-667.57,0.00021917,2]
[368594602,1751220653299,-223.392188,0.00021917,2]
[368594603,1751220653308,-223.392188,0.00021917,2]
[368594604,1751220653318,-223.392188,0.00021917,2]
[368594605,1751220653328,-223.392188,0.00021917,2]
[368594606,1751220653338,-223.392188,0.00021917,2]
[368594607,1751220653348,-3068.43,0.00021917,2]
[368594608,1751220653358,-525.1,0.00021917,2]
[368594609,1751220653367,-2915.48,0.00021917,2]
[368594610,1751220653377,-1011.99,0.00021917,2]
[368594611,1751220653387,-513.63,0.00021917,2]
[368594612,1751220653396,-4867.28,0.00021917,2]
[368594613,1751220653406,-2703.75,0.00021917,2]
[368594614,1751220653416,-490.0,0.00021917,2]
[368594615,1751220653425,-490.0,0.00021917,2]
[368594616,1751220653435,-490.0,0.00021917,2]
[368594617,1751220653444,-490.0,0.00021917,2]
[368594618,1751220653454,-490.0,0.00021917,2]
[368594619,1751220653464,-490.0,0.00021917,2]
[368594620,1751220653474,-490.0,0.00021917,2]
[368594621,1751220653484,-490.0,0.00021917,2]
[368594622,1751220653494,-490.0,0.00021917,2]
[368594623,1751220653507,-5396.17,0.00021917,2]
[368594624,1751220653517,-2181.49,0.00021917,2]
[368594625,1751220653527,-490.0,0.00021917,2]
[368594626,1751220653536,-7080.62,0.00021917,2]
[368594627,1751220653546,-490.0,0.00021917,2]
[368594628,1751220653556,-1670.28,0.00021917,2]
[368594629,1751220653566,-490.0,0.00021917,2]
[368594630,1751220653578,-751.52,0.00021917,2]
[368594631,1751220653587,-1790.76,0.00021917,2]
[368594632,1751220653596,-615.5,0.00021917,2]
[368594633,1751220653605,-162.377986,0.00021917,2]
[368594634,1751220653614,-1504.51,0.00021917,2]
[368594635,1751220653624,-162.377986,0.00021917,2]
[368594636,1751220653633,-490.0,0.00021917,2]
[368594637,1751220653642,-867.25,0.00021917,2]
[368594638,1751220653651,-162.377986,0.00021917,2]
[368594639,1751220653661,-162.377986,0.00021917,2]
[368594640,1751220653671,-162.377986,0.00021917,2]
[368594641,1751220653680,-1540.74,0.00021917,2]
[368594642,1751220653689,-162.377986,0.00021917,2]
[368594643,1751220653699,-490.0,0.00021917,2]
[368594644,1751220653707,-490.0,0.00021917,2]
[368594645,1751220653717,-490.0,0.00021917,2]
[368594646,1751220653727,-1905.64,0.00021917,2]
[368594647,1751220653736,-162.377986,0.00021917,2]
[368594648,1751220653746,-151.0,0.00021917,2]
[368594649,1751220653755,-162.377986,0.00021917,2]
[368594650,1751220653765,-151.0,0.00021917,2]
[368594651,1751220653774,-215.257423,0.00021917,2]
[368594652,1751220653783,-162.377986,0.00021917,2]
[368594653,1751220653792,-1612.968199,0.00021917,2]
[368594654,1751220653801,-11868.49,0.00021917,2]
[368594655,1751220653810,-682.07,0.00021917,2]
[368594656,1751220653820,-162.377986,0.00021917,2]
[368594657,1751220653829,-162.377986,0.00021917,2]
[368594658,1751220653838,-162.377986,0.00021917,2]
[368594659,1751220653847,-490.0,0.00021917,2]
[368594660,1751220653857,-2395.66,0.00021917,2]
[368594661,1751220653866,-490.0,0.00021917,2]
[368594662,1751220653875,-490.0,0.00021917,2]
[368594663,1751220653885,-3314.19,0.00021917,2]
[368594664,1751220653894,-490.0,0.00021917,2]
[368594665,1751220653903,-1901.95,0.00021917,2]
[368594666,1751220653913,-490.0,0.00021917,2]
[368594667,1751220653923,-490.0,0.00021917,2]
[368594668,1751220653933,-490.0,0.00021917,2]
[368594669,1751220653943,-490.0,0.00021917,2]
[368594670,1751220653953,-164.959274,0.00021917,2]
[368594671,1751220653962,-1273.34,0.00021917,2]
[368594672,1751220653972,-490.0,0.00021917,2]
[368594673,1751220653981,-490.0,0.00021917,2]
[368594674,1751220653991,-490.0,0.00021917,2]
[368594675,1751220654000,-3417.99,0.00021917,2]
[368594676,1751220654010,-490.0,0.00021917,2]
[368594677,1751220654020,-490.0,0.00021917,2]
[368594678,1751220654029,-2933.85,0.00021917,2]
[368594679,1751220654038,-808.51,0.00021917,2]
[368594680,1751220654047,-2814.56,0.00021917,2]
[368594681,1751220654056,-164.959274,0.00021917,2]
[368594682,1751220654066,-164.959274,0.00021917,2]
[368594683,1751220654075,-1350.88,0.00021917,2]
[368594684,1751220654085,-164.959274,0.00021917,2]
[368594685,1751220654094,-5225.6,0.00021917,2]
[368594686,1751220654104,-1397.57,0.00021917,2]
[368594687,1751220654113,-164.959274,0.00021917,2]
[368594688,1751220654122,-490.0,0.00021917,2]
[368594689,1751220654131,-490.0,0.00021917,2]
[368594690,1751220654140,-654.02,0.00021917,2]
[368594691,1751220654149,-490.0,0.00021917,2]
[368594692,1751220654158,-164.959274,0.00021917,2]
[368594693,1751220654167,-164.959274,0.00021917,2]
[368594694,1751220654177,-2053.04,0.00021917,2]
[368594695,1751220654186,-598.87,0.00021917,2]
[368594696,1751220654195,-1958.23,0.00021917,2]
[368594697,1751220654205,-209.66541642,0.00021917,2]
[368594698,1751220654214,-164.959274,0.00021917,2]
[368594699,1751220654224,-490.0,0.00021917,2]
[368594700,1751220654233,-4323.9,0.00021917,2]
[368594701,1751220654242,-164.959274,0.00021917,2]
[368594702,1751220654251,-164.959274,0.00021917,2]
[368594703,1751220654260,-6380.22,0.00021917,2]
[368594704,1751220654269,-430.01165356,0.00021917,2]
[368594705,1751220654279,-490.0,0.00021917,2]
[368594706,1751220654289,-1298.930184,0.00021917,2]
[368594707,1751220654299,-490.0,0.00021917,2]
[368594708,1751220654308,-490.0,0.00021917,2]
[368594709,1751220654318,-1549.811702,0.00021917,2]
[368594710,1751220654327,-3320.47,0.00021917,2]
[368594711,1751220654336,-490.0,0.00021917,2]
[368594712,1751220654345,-490.0,0.00021917,2]
[368594713,1751220654355,-490.0,0.00021917,2]
[368594714,1751220654364,-490.0,0.00021917,2]
[368594715,1751220654373,-2183.37,0.00021917,2]
[368594716,1751220654382,-490.0,0.00021917,2]
[368594717,1751220654392,-490.0,0.00021917,2]
[368594718,1751220654401,-490.0,0.00021917,2]
[368594719,1751220654410,-490.0,0.00021917,2]
[368594720,1751220654420,-2887.86,0.00021917,2]
[368594721,1751220654429,-2940.35,0.00021917,2]
[368594722,1751220654444,-490.0,0.00021917,2]
[368594723,1751220654463,-2143.5,0.00021917,2]
[368594724,1751220654476,-490.0,0.00021917,2]
[368594725,1751220654493,-4851.11,0.00021917,2]
[368594726,1751220654513,-2714.71,0.00021917,2]
[368594727,1751220654529,-19305.7,0.00021917,2]
[368594728,1751220654542,-3119.73,0.00021917,2]
[368594729,1751220654560,-2345.73,0.00021917,2]
[368594730,1751220654576,-490.0,0.00021917,2]
[368594731,1751220654592,-490.0,0.00021917,2]
[368594732,1751220654608,-490.0,0.00021917,2]
[368594733,1751220654623,-490.0,0.00021917,2]
[368594734,1751220654638,-490.0,0.00021917,2]
[368594735,1751220654653,-490.0,0.00021917,2]
[368594736,1751220654668,-495.46273633,0.00021917,2]
[368594737,1751220654682,-151.0,0.00021917,2]
[368594738,1751220654694,-490.0,0.00021917,2]
[368594739,1751220654710,-681.4,0.00021917,2]
[368594740,1751220654726,-151.0,0.00021917,2]
[368594741,1751220654737,-222.01858147,0.00021917,2]
[368594742,1751220654750,-151.0,0.00021917,2]
[368594743,1751220654767,-151.0,0.00021917,2]
[368594744,1751220654781,-490.0,0.00021917,2]
[368594745,1751220654793,-151.0,0.00021917,2]
[368594746,1751220654808,-151.0,0.00021917,2]
[368594747,1751220654821,-546.85,0.00021917,2]
[368594748,1751220654835,-8497.72,0.00021917,2]
[368594749,1751220654849,-770.86,0.00021917,2]
[368594750,1751220654864,-534.34,0.00021917,2]
[368594751,1751220654877,-490.0,0.00021917,2]
[368594752,1751220654892,-2803.43,0.00021917,2]
[368594753,1751220654905,-6828.18,0.00021917,2]
[368594754,1751220654919,-3101.21,0.00021917,2]
[368594755,1751220654932,-1803.96,0.00021917,2]
[368594756,1751220654945,-490.0,0.00021917,2]
[368594757,1751220654958,-2570.02,0.00021917,2]
[368594758,1751220654971,-1041.0,0.00021917,2]
[368594759,1751220654985,-1600.7,0.00021917,2]
[368594760,1751220654998,-490.0,0.00021917,2]
[368594761,1751220655011,-490.0,0.00021917,2]
[368594762,1751220655024,-1807.19,0.00021917,2]
[368594763,1751220655037,-923.891846,0.00021917,2]
[368594764,1751220655050,-1807.19,0.00021917,2]
[368594765,1751220655062,-490.0,0.00021917,2]
[368594766,1751220655075,-1807.19,0.00021917,2]
[368594767,1751220655088,-1158.26,0.00021917,2]
[368594768,1751220655101,-1807.19,0.00021917,2]
[368594769,1751220655115,-1807.19,0.00021917,2]
[368594770,1751220655128,-490.0,0.00021917,2]
[368594771,1751220655142,-1807.19,0.00021917,2]
[368594772,1751220655156,-490.0,0.00021917,2]
[368594773,1751220655176,-1807.19,0.00021917,2]
[368594774,1751220655191,-1807.19,0.00021917,2]
[368594775,1751220655205,-1807.19,0.00021917,2]
[368594776,1751220655218,-1807.19,0.00021917,2]
[368594777,1751220655232,-1098.16,0.00021917,2]
[368594778,1751220655245,-592.48752408,0.00021917,2]
[368594779,1751220655258,-1774.81,0.00021917,2]
[368594780,1751220655272,-151.0,0.00021917,2]
[368594781,1751220655285,-490.0,0.00021917,2]
[368594782,1751220655299,-152.127401,0.00021917,2]
[368594783,1751220655314,-490.0,0.00021917,2]
[368594784,1751220655329,-1771.45,0.00021917,2]
[368594785,1751220655343,-1807.19,0.00021917,2]
[368594786,1751220655356,-5748.83,0.00021917,2]
[368594787,1751220655369,-1807.19,0.00021917,2]
[368594788,1751220655384,-1182.53,0.00021917,2]
[368594789,1751220655398,-490.0,0.00021917,2]
[368594790,1751220655413,-2163.01,0.00021917,2]
[368594791,1751220655427,-490.0,0.00021917,2]
[368594792,1751220655441,-490.0,0.00021917,2]
[368594793,1751220655455,-490.0,0.00021917,2]
[368594794,1751220655468,-1807.19,0.00021917,2]
[368594795,1751220655483,-1807.19,0.00021917,2]
[368594796,1751220655499,-1807.19,0.00021917,2]
[368594797,1751220655514,-1807.19,0.00021917,2]
[368594798,1751220655528,-1807.19,0.00021917,2]
[368594799,1751220655543,-3300.51,0.00021917,2]
[368594800,1751220655556,-1227.02,0.00021917,2]
[368594801,1751220655570,-2371.28,0.00021917,2]
[368594802,1751220655585,-1807.19,0.00021917,2]
[368594803,1751220655598,-1807.19,0.00021917,2]
[368594804,1751220655611,-667.02,0.00021917,2]
[368594805,1751220655624,-490.0,0.00021917,2]
[368594806,1751220655639,-490.0,0.00021917,2]
[368594807,1751220655652,-1166.01,0.00021917,2]
[368594808,1751220655665,-490.0,0.00021917,2]
[368594809,1751220655679,-2870.96,0.00021917,2]
[368594810,1751220655692,-2290.41,0.00021917,2]
[368594811,1751220655705,-567.54,0.00021917,2]
[368594812,1751220655719,-6504.26,0.00021917,2]
[368594813,1751220655732,-490.0,0.00021917,2]
[368594814,1751220655745,-2947.72,0.00021917,2]
[368594815,1751220655757,-490.0,0.00021917,2]